[Event "ONJK-A 2019"]
[Site "Borne"]
[Date "2019.08.08"]
[Round "6.10"]
[White "Segers, Job"]
[Black "Merkon, Oseb"]
[Result "0-1"]
[ECO "B25"]
[WhiteElo "1618"]
[BlackElo "2013"]
[Annotator "NA"]
[PlyCount "80"]
[EventDate "2019.08.05"]
[EventType "swiss"]
[EventCountry "NED"]
[SourceTitle "playchess.com"]
[Source "ChessBase"]
[SourceQuality "1"]
[TimeControl "5400+30"]

1. e4 {[%emt 0:00:00]} c5 {[%emt 0:00:00]} 2. Nc3 {[%emt 0:00:00]} Nc6 {[%emt 0:00:00]} 3. g3 {[%emt 0:00:00]} g6 {[%emt 0:00:00]} 4. Bg2 {[%emt 0:00:00]} e5 {[%emt 0:00:03]} 5. d3 {[%emt 0:00:11]} Bg7 {[%emt 0:00:08]} 6. Nge2 {[%emt 0:00:28]} Nge7 {[%emt 0:00:05]} 7. O-O {[%emt 0:00:08]} O-O {[%emt 0:00:02]} 8. Be3 {[%emt 0:00:56]} d6 {[%emt 0:00:09]} 9. f4 {[%emt 0:00:11]} f5 {[%emt 0:00:35]} 10. Qd2 {[%emt 0:02:28]} Be6 {[%emt 0:03:03]} 11. fxe5 {[%emt 0:20:10]} Nxe5 {[%emt 0:11:47]} 12. Nf4 {[%emt 0:02:36]} Bf7 {[%emt 0:07:06]} 13. Ncd5 {[%emt 0:08:14]} Nxd5 {[%emt 0:01:22]} 14. Nxd5 {[%emt 0:00:21]} Bxd5 {[%emt 0:00:08]} 15. exd5 {[%emt 0:00:04]} Ng4 {[%emt 0:00:11]} 16. Bg5 {[%emt 0:00:38]} Qb6 {[%emt 0:02:56]} 17. c3 {[%emt 0:01:17]} Ne5 {[%emt 0:06:37]} 18. Rab1 {[%emt 0:10:09]} Rae8 {[%emt 0:04:24]} 19. Kh1 {[%emt 0:08:06]} Qa6 {[%emt 0:07:40]} 20. Bf4 {[%emt 0:06:22]} Nf7 {[%emt 0:12:31]} 21. b4 {[%emt 0:06:01]} b6 {[%emt 0:04:00]} 22. Rf2 {[%emt 0:07:59]} Be5 {[%emt 0:01:58]} 23. Bxe5 {[%emt 0:05:57]} Nxe5 {[%emt 0:05:39]} 24. Bf1 {[%emt 0:01:54]} Qb7 {[%emt 0:01:19]} 25. Bg2 {[%emt 0:00:32]} Qf7 {[%emt 0:05:32]} 26. bxc5 {[%emt 0:01:37]} bxc5 {[%emt 0:00:27]} 27. h3 {[%emt 0:00:18]} Rb8 {[%emt 0:00:47]} 28. Rb3 {[%emt 0:01:05]} Rxb3 {[%emt 0:02:08]} 29. axb3 {[%emt 0:00:08]} Qb7 {[%emt 0:02:13]} 30. d4 {[%emt 0:00:24]} cxd4 {[%emt 0:00:34]} 31. cxd4 {[%emt 0:01:36]} Nf7 {[%emt 0:01:00]} 32. Qe3 {[%emt 0:00:08]} Rb8 {[%emt 0:01:42]} 33. Rc2 {[%emt 0:01:02]} Qxb3 {[%emt 0:01:56]} 34. Rc8+ {[%emt 0:01:48]} Kg7 {[%emt 0:00:25]} 35. Qe8 {[%emt 0:01:01]} Rxc8 {[%emt 0:00:17]} 36. Qxc8 {[%emt 0:00:05]} Qxg3 {[%emt 0:00:16]} 37. Qd7 {[%emt 0:00:24]} Qe1+ {[%emt 0:01:32]} 38. Kh2 {[%emt 0:00:13]} a5 {[%emt 0:00:17]} 39. Qa7 {[%emt 0:00:55]} Qb4 {[%emt 0:00:26]} 40. Bf3 {[%emt 0:00:47]} a4 {[%emt 0:00:21]} 0-1

[Event "ONJK-A 2019"]
[Site "Borne"]
[Date "2019.08.08"]
[Round "6.11"]
[White "Nies, Levi"]
[Black "Klaren, Duncan"]
[Result "0-1"]
[ECO "B23"]
[WhiteElo "1516"]
[BlackElo "1896"]
[Annotator "NA"]
[PlyCount "50"]
[EventDate "2019.08.05"]
[EventType "swiss"]
[EventCountry "NED"]
[SourceTitle "playchess.com"]
[Source "ChessBase"]
[SourceQuality "1"]
[TimeControl "5400+30"]

1. e4 {[%emt 0:21:32]} c5 {[%emt 0:00:00]} 2. Nc3 {[%emt 0:00:12]} Nc6 {[%emt 0:00:00]} 3. f4 {[%emt 0:00:05]} g6 {[%emt 0:00:00]} 4. Bc4 {[%emt 0:00:07]} Bg7 {[%emt 0:00:05]} 5. Nf3 {[%emt 0:00:05]} e6 {[%emt 0:00:05]} 6. d3 {[%emt 0:00:05]} Nge7 {[%emt 0:00:07]} 7. O-O {[%emt 0:00:06]} O-O {[%emt 0:00:10]} 8. Qe1 {[%emt 0:00:10]} d5 {[%emt 0:00:57]} 9. Bb3 {[%emt 0:00:11]} Nd4 {[%emt 0:00:14]} 10. Qh4 {[%emt 0:01:04]} Nxf3+ {[%emt 0:03:03]} 11. Rxf3 {[%emt 0:00:38]} Nc6 {[%emt 0:01:33]} 12. Qxd8 {[%emt 0:01:48]} Rxd8 {[%emt 0:00:05]} 13. exd5 {[%emt 0:00:30]} exd5 {[%emt 0:00:07]} 14. Nxd5 {[%emt 0:01:13]} Nd4 {[%emt 0:00:14]} 15. Ne7+ {[%emt 0:01:34]} Kf8 {[%emt 0:00:14]} 16. Nxc8 {[%emt 0:03:53]} Nxf3+ {[%emt 0:00:06]} 17. gxf3 {[%emt 0:00:03]} Raxc8 {[%emt 0:00:07]} 18. Bc4 {[%emt 0:00:27]} Re8 {[%emt 0:00:47]} 19. Kf1 {[%emt 0:00:33]} Re7 {[%emt 0:00:53]} 20. c3 {[%emt 0:02:01]} Rce8 {[%emt 0:00:10]} 21. Bd2 {[%emt 0:00:44]} Re2 {[%emt 0:00:09]} 22. Be1 {[%emt 0:05:48]} Rxb2 {[%emt 0:00:20]} 23. Bf2 {[%emt 0:01:50]} b6 {[%emt 0:01:01]} 24. d4 {[%emt 0:00:03]} cxd4 {[%emt 0:00:11]} 25. cxd4 {[%emt 0:00:48]} Rxf2+ {[%emt 0:00:08]} 0-1

[Event "ONJK-A 2019"]
[Site "Borne"]
[Date "2019.08.08"]
[Round "6.12"]
[White "Vermet, Thomas"]
[Black "Vitharana, Annelies"]
[Result "0-1"]
[ECO "B18"]
[WhiteElo "1477"]
[BlackElo "1768"]
[Annotator "NA"]
[PlyCount "62"]
[EventDate "2019.08.05"]
[EventType "swiss"]
[EventCountry "NED"]
[SourceTitle "playchess.com"]
[Source "ChessBase"]
[SourceQuality "1"]
[TimeControl "5400+30"]

1. e4 {[%emt 0:03:43]} c6 {[%emt 0:00:00]} 2. d4 {[%emt 0:00:03]} d5 {[%emt 0:00:00]} 3. Nc3 {[%emt 0:00:06]} dxe4 {[%emt 0:00:00]} 4. Nxe4 {[%emt 0:00:09]} Bf5 {[%emt 0:00:05]} 5. Ng3 {[%emt 0:00:13]} Bg6 {[%emt 0:00:08]} 6. Nh3 {[%emt 0:00:45]} Nf6 {[%emt 0:01:05]} 7. Bc4 {[%emt 0:01:14]} e6 {[%emt 0:01:22]} 8. O-O {[%emt 0:00:18]} Be7 {[%emt 0:00:43]} 9. f4 {[%emt 0:02:16]} Ne4 {[%emt 0:06:11]} 10. c3 {[%emt 0:10:40]} Nxg3 {[%emt 0:02:36]} 11. hxg3 {[%emt 0:00:06]} O-O {[%emt 0:01:26]} 12. g4 {[%emt 0:06:40]} Be4 {[%emt 0:02:22]} 13. Qe2 {[%emt 0:08:41]} Bd5 {[%emt 0:02:42]} 14. Bxd5 {[%emt 0:11:11]} exd5 {[%emt 0:04:50]} 15. Kh1 {[%emt 0:04:47]} Nd7 {[%emt 0:02:15]} 16. Qf3 {[%emt 0:09:29]} Rc8 {[%emt 0:04:52]} 17. Be3 {[%emt 0:00:55]} Re8 {[%emt 0:06:30]} 18. Rae1 {[%emt 0:09:38]} Qa5 {[%emt 0:01:55]} 19. a3 {[%emt 0:02:40]} Nb6 {[%emt 0:04:45]} 20. Nf2 {[%emt 0:05:21]} Nc4 {[%emt 0:04:09]} 21. Bc1 {[%emt 0:06:51]} Qb6 {[%emt 0:04:09]} 22. Nd3 {[%emt 0:06:52]} Nd6 {[%emt 0:04:28]} 23. Re2 {[%emt 0:02:57]} Ne4 {[%emt 0:01:23]} 24. Nf2 {[%emt 0:00:38]} Nd6 {[%emt 0:08:07]} 25. Nd3 {[%emt 0:00:00]} Qc7 26. Rfe1 {[%emt 0:03:20]} Bf8 {[%emt 0:01:33]} 27. Rxe8 {[%emt 0:00:17]} Rxe8 {[%emt 0:03:00]} 28. Rxe8 Nxe8 {[%emt 0:01:42]} 29. Qe2 {[%emt 0:00:00]} Nf6 30. g5 {[%emt 0:00:00]} Ne4 31. Nf2 {[%emt 0:00:36]} Ng3+ {[%emt 0:00:20]} 0-1

[Event "ONJK-A 2019"]
[Site "Borne"]
[Date "2019.08.09"]
[Round "7.2"]
[White "De Bock, Thijs"]
[Black "Noordenbos, Daan"]
[Result "1-0"]
[ECO "C06"]
[WhiteElo "1870"]
[BlackElo "2042"]
[Annotator "NA RC"]
[PlyCount "49"]
[EventDate "2019.08.05"]
[EventType "swiss"]
[EventCountry "NED"]
[SourceTitle "playchess.com"]
[Source "ChessBase"]
[SourceQuality "1"]
[TimeControl "5400+30"]

1. e4 {[%emt 0:00:00]} e6 {[%emt 0:00:00]} 2. d4 {[%emt 0:00:00]} d5 {[%emt 0:00:00]} 3. Nd2 {[%emt 0:00:00]} Nf6 {[%emt 0:00:00]} 4. e5 {[%emt 0:00:00]} Nfd7 {[%emt 0:00:00]} 5. c3 {[%emt 0:00:00]} c5 {[%emt 0:00:04]} 6. Bd3 {[%emt 0:00:00]} Nc6 {[%emt 0:00:06]} 7. Ngf3 {[%emt 0:00:00]} Qb6 {[%emt 0:06:25]} 8. O-O {[%emt 0:00:01]} Be7 {[%emt 0:08:19]} 9. Re1 {[%emt 0:05:14]} O-O {[%emt 0:06:09]} 10. Nf1 {[%emt 0:00:30]} cxd4 {[%emt 0:06:49]} 11. cxd4 {[%emt 0:00:33]} f6 {[%emt 0:00:30]} 12. Ng5 $19 {[%emt 0:19:11]} (12. exf6 $11 {and White stays safe.} Nxf6 13. a3) 12... fxg5 {[%emt 0:07:15]} 13. Qh5 {[%emt 0:00:09]} h6 {[%emt 0:03:46]} 14. Qg6 {[%emt 0:00:20]} Ndxe5 {[%emt 0:00:31]} 15. dxe5 {[%emt 0:04:19]} Qxf2+ {[%emt 0:10:55]} 16. Kh1 {[%emt 0:00:09]} Rf5 {[%emt 0:02:50]} 17. Be3 {[%emt 0:03:04]} Qxb2 {[%emt 0:02:37]} 18. Bxf5 {[%emt 0:05:36]} exf5 {[%emt 0:00:26]} 19. Ng3 {[%emt 0:02:23]} Bf8 {[%emt 0:12:28]} 20. Nh5 {[%emt 0:00:43]} Kh8 {[%emt 0:00:10]} 21. Bc5 {[%emt 0:01:16]} Nxe5 {[%emt 0:01:04]} 22. Qe8 {[%emt 0:00:20]} Nd7 {[%emt 0:00:54]} 23. Bxf8 {[%emt 0:00:15]} Nxf8 {[%emt 0:00:04]} 24. Qxf8+ {[%emt 0:00:56]} Kh7 {[%emt 0:00:01]} 25. Rab1 {[%emt 0:00:10]} 1-0

[Event "ONJK-A 2019"]
[Site "Borne"]
[Date "2019.08.09"]
[Round "7.5"]
[White "Ypma, Jord"]
[Black "Baselmans, Sam"]
[Result "0-1"]
[ECO "A45"]
[WhiteElo "1968"]
[BlackElo "2064"]
[Annotator "NA RC"]
[PlyCount "116"]
[EventDate "2019.08.05"]
[EventType "swiss"]
[EventCountry "NED"]
[SourceTitle "playchess.com"]
[Source "ChessBase"]
[SourceQuality "1"]
[TimeControl "5400+30"]

1. d4 {[%emt 0:00:00]} Nf6 {[%emt 0:00:00]} 2. Bf4 {[%emt 0:00:00]} g6 {[%emt 0:00:00]} 3. Nc3 {[%emt 0:00:00]} d5 {[%emt 0:00:00]} 4. e3 {[%emt 0:00:08]} Bg7 {[%emt 0:00:00]} 5. h4 {[%emt 0:00:04]} O-O {[%emt 0:00:19]} 6. h5 {[%emt 0:00:28]} c5 {[%emt 0:00:06]} 7. hxg6 {[%emt 0:01:26]} hxg6 {[%emt 0:00:07]} 8. Nf3 {[%emt 0:01:30]} Bg4 {[%emt 0:03:18]} 9. Qd2 {[%emt 0:04:01]} Nc6 {[%emt 0:06:05]} 10. Ne5 {[%emt 0:09:16]} Nxe5 {[%emt 0:12:13]} 11. Bxe5 {[%emt 0:02:09]} Ne4 $1 {[%emt 0:06:40]} 12. Nxe4 {[%emt 0:00:51]} dxe4 {[%emt 0:00:04]} 13. Bxg7 {[%emt 0:05:01]} Kxg7 $11 {[%emt 0:00:11]} 14. Be2 {[%emt 0:13:49]} Bxe2 {[%emt 0:02:13]} 15. Qxe2 {[%emt 0:11:12]} Qa5+ {[%emt 0:07:49]} 16. c3 {[%emt 0:00:32]} Rh8 {[%emt 0:00:06]} 17. Rg1 {[%emt 0:04:01]} Rad8 {[%emt 0:01:01]} 18. Qc4 {[%emt 0:05:51]} cxd4 {[%emt 0:05:18]} 19. exd4 {[%emt 0:01:23]} b5 {[%emt 0:17:14]} 20. Qc5 Kf8 {[%emt 0:08:54]} 21. a3 {[%emt 0:00:03]} Rh5 22. Qb4 {[%emt 0:00:07]} Qc7 {[%emt 0:01:42]} 23. O-O-O {[%emt 0:00:09]} Rf5 {[%emt 0:06:16]} 24. Rgf1 {[%emt 0:29:10]} Kg7 {[%emt 0:00:26]} 25. Kb1 {[%emt 0:01:27]} a5 {[%emt 0:01:02]} 26. Qb3 {[%emt 0:00:07]} Rb8 {[%emt 0:00:25]} 27. f3 {[%emt 0:03:13]} exf3 {[%emt 0:00:36]} 28. Rxf3 {[%emt 0:00:04]} Rxf3 {[%emt 0:00:20]} 29. gxf3 {[%emt 0:00:31]} Qf4 30. Qd5 {[%emt 0:06:03]} e6 {[%emt 0:07:48]} 31. Qe5+ {[%emt 0:00:00]} Qxe5 {[%emt 0:00:06]} 32. dxe5 {[%emt 0:00:00]} Rc8 {[%emt 0:00:01]} 33. Kc2 {[%emt 0:00:00]} g5 {[%emt 0:01:14]} 34. Rd7 {[%emt 0:00:00]} Rc5 {[%emt 0:00:27]} 35. Kd3 {[%emt 0:00:12]} Rxe5 {[%emt 0:00:36]} 36. b4 {[%emt 0:00:14]} axb4 {[%emt 0:00:13]} 37. axb4 {[%emt 0:00:04]} Rf5 {[%emt 0:02:12]} 38. Ke3 {[%emt 0:00:34]} Kf6 {[%emt 0:00:50]} 39. Rc7 {[%emt 0:01:39]} Rd5 {[%emt 0:00:43]} 40. Rb7 {[%emt 0:01:17]} Kg6 {[%emt 0:00:39]} 41. Rb8 {[%emt 0:00:33]} Kf5 {[%emt 0:00:55]} 42. Rb7 {[%emt 0:00:46]} f6 {[%emt 0:00:14]} 43. Rb6 {[%emt 0:00:06]} Ke5 {[%emt 0:00:25]} 44. Rb8 {[%emt 0:00:57]} f5 {[%emt 0:03:02]} 45. Rg8 {[%emt 0:00:04]} f4+ {[%emt 0:01:31]} 46. Ke2 {[%emt 0:00:03]} Kf6 {[%emt 0:02:16]} 47. Rf8+ {[%emt 0:00:09]} Ke7 {[%emt 0:01:13]} 48. Rg8 {[%emt 0:00:34]} Kd7 {[%emt 0:00:19]} 49. Rg7+ {[%emt 0:00:17]} Kc6 {[%emt 0:00:08]} 50. Rg8 {[%emt 0:00:12]} Re5+ {[%emt 0:01:09]} 51. Kf2 {[%emt 0:01:43]} Re3 {[%emt 0:00:24]} 52. Rxg5 {[%emt 0:00:28]} Rxc3 {[%emt 0:01:15]} 53. Re5 {[%emt 0:00:03]} Rc2+ {[%emt 0:01:01]} 54. Ke1 {[%emt 0:00:09]} Rc4 {[%emt 0:00:04]} 55. Rxe6+ {[%emt 0:00:37]} Kd5 {[%emt 0:00:06]} 56. Re8 {[%emt 0:00:28]} Rxb4 {[%emt 0:00:06]} 57. Rd8+ {[%emt 0:00:03]} Kc4 {[%emt 0:00:23]} 58. Rf8 {[%emt 0:00:39]} Kd3 {[%emt 0:00:53]} 0-1

[Event "ONJK-A 2019"]
[Site "Borne"]
[Date "2019.08.09"]
[Round "7.7"]
[White "Hempler, Poul"]
[Black "De Vries, Tobias"]
[Result "1-0"]
[ECO "B22"]
[WhiteElo "1856"]
[BlackElo "1868"]
[Annotator "NA RC"]
[PlyCount "89"]
[EventDate "2019.08.05"]
[EventType "swiss"]
[EventCountry "NED"]
[SourceTitle "playchess.com"]
[Source "ChessBase"]
[SourceQuality "1"]
[TimeControl "5400+30"]

1. e4 {[%emt 0:00:00]} c5 {[%emt 0:00:31]} 2. c3 {[%emt 0:00:00]} d5 {[%emt 0:00:20]} 3. exd5 {[%emt 0:00:00]} Nf6 {[%emt 0:00:03]} 4. c4 {[%emt 0:05:27]} e6 {[%emt 0:00:22]} 5. dxe6 {[%emt 0:00:25]} Bxe6 {[%emt 0:00:05]} 6. Nf3 {[%emt 0:01:07]} Nc6 {[%emt 0:00:41]} 7. Be2 {[%emt 0:15:22]} Bd6 {[%emt 0:00:36]} 8. O-O {[%emt 0:02:00]} O-O {[%emt 0:02:13]} 9. b3 {[%emt 0:06:07]} Qc7 {[%emt 0:13:21]} 10. Bb2 $14 {[%emt 0:03:46]} Nd4 {[%emt 0:14:39]} 11. h3 {[%emt 0:00:59]} Nxe2+ {[%emt 0:01:06]} 12. Qxe2 {[%emt 0:00:09]} Nh5 {[%emt 0:11:44]} 13. Ng5 {[%emt 0:11:59]} Nf4 {[%emt 0:02:56]} 14. Qe4 {[%emt 0:00:07]} g6 {[%emt 0:04:02]} 15. Nxe6 {[%emt 0:02:44]} fxe6 {[%emt 0:04:04]} 16. Nc3 {[%emt 0:03:03]} Qe7 {[%emt 0:06:52]} 17. Rae1 {[%emt 0:05:16]} Qg5 {[%emt 0:07:31]} 18. Re3 {[%emt 0:02:05]} Rae8 {[%emt 0:05:02]} 19. Nb5 {[%emt 0:06:46]} Bb8 {[%emt 0:02:48]} 20. Qxb7 {[%emt 0:01:22]} Re7 {[%emt 0:02:12]} 21. Qe4 {[%emt 0:01:51]} Ref7 {[%emt 0:06:38]} 22. Na3 {[%emt 0:04:38]} Rd8 {[%emt 0:08:33]} 23. Bc3 {[%emt 0:00:38]} Nh5 {[%emt 0:02:12]} 24. Qg4 {[%emt 0:03:08]} Qe7 {[%emt 0:01:53]} 25. Qxe6 {[%emt 0:01:51]} Qc7 {[%emt 0:01:03]} 26. Qe5 {[%emt 0:00:59]} Qxe5 {[%emt 0:00:30]} 27. Bxe5 {[%emt 0:00:11]} Bxe5 {[%emt 0:00:36]} 28. Rxe5 {[%emt 0:00:06]} Rxd2 {[%emt 0:00:15]} 29. Rxc5 {[%emt 0:00:56]} Rxa2 {[%emt 0:00:21]} 30. Nb5 {[%emt 0:01:44]} Rb2 {[%emt 0:01:05]} 31. Nd4 {[%emt 0:01:20]} Rd7 {[%emt 0:00:27]} 32. Rd1 {[%emt 0:00:19]} Nf4 {[%emt 0:00:47]} 33. Kh2 {[%emt 0:03:10]} Rxf2 {[%emt 0:00:25]} 34. Kg3 {[%emt 0:01:12]} Rxg2+ {[%emt 0:00:35]} 35. Kxf4 {[%emt 0:00:17]} Rf7+ {[%emt 0:00:17]} 36. Ke4 {[%emt 0:00:48]} Rg3 {[%emt 0:00:42]} 37. Ne6 {[%emt 0:03:09]} Re7 {[%emt 0:00:05]} 38. Re5 {[%emt 0:00:16]} Re8 {[%emt 0:00:41]} 39. Rd3 {[%emt 0:01:00]} Rg1 {[%emt 0:00:28]} 40. Kd5 {[%emt 0:00:40]} Ra1 {[%emt 0:00:12]} 41. c5 {[%emt 0:02:35]} Ra5 {[%emt 0:00:46]} 42. Kd6 {[%emt 0:00:37]} Rb5 {[%emt 0:00:42]} 43. c6 {[%emt 0:01:02]} Rxe5 {[%emt 0:00:37]} 44. Kxe5 {[%emt 0:00:12]} Kf7 {[%emt 0:00:25]} 45. Rd7+ {[%emt 0:00:29]} 1-0

[Event "ONJK-A 2019"]
[Site "Borne"]
[Date "2019.08.09"]
[Round "7.8"]
[White "Vleming, Stefan"]
[Black "Merkon, Oseb"]
[Result "0-1"]
[ECO "D11"]
[WhiteElo "1760"]
[BlackElo "2013"]
[Annotator "NA RC"]
[PlyCount "48"]
[EventDate "2019.08.05"]
[EventType "swiss"]
[EventCountry "NED"]
[SourceTitle "playchess.com"]
[Source "ChessBase"]
[SourceQuality "1"]
[TimeControl "5400+30"]

1. d4 {[%emt 0:00:00]} d5 {[%emt 0:00:00]} 2. c4 {[%emt 0:00:00]} c6 {[%emt 0:00:35]} 3. Nf3 {[%emt 0:00:00]} Nf6 {[%emt 0:00:19]} 4. e3 {[%emt 0:00:03]} Bg4 {[%emt 0:00:24]} 5. h3 {[%emt 0:00:20]} Bh5 {[%emt 0:00:08]} 6. g4 {[%emt 0:00:11]} Bg6 {[%emt 0:00:07]} 7. Nh4 {[%emt 0:00:09]} e6 {[%emt 0:00:39]} 8. Nc3 {[%emt 0:01:00]} Nbd7 {[%emt 0:04:07]} 9. Bg2 {[%emt 0:04:13]} dxc4 {[%emt 0:02:47]} 10. e4 $2 {[%emt 0:13:04] [#]} (10. Nxg6 $11 {and White stays safe.} hxg6 11. Bd2) 10... Nxe4 $1 {[%emt 0:16:29] Discovered Attack} 11. Nxe4 {[%emt 0:01:57]} (11. Nxg6 $142 Nxc3 12. bxc3 hxg6 13. Qe2) 11... Bxe4 {[%emt 0:00:18]} ({Weaker is} 11... Qxh4 12. Bg5 $14) 12. Bxe4 {[%emt 0:00:03]} Qxh4 {[%emt 0:00:07]} 13. Qc2 {[%emt 0:00:50]} Bb4+ {[%emt 0:02:24]} 14. Ke2 {[%emt 0:01:28]} Nb6 {[%emt 0:02:45]} 15. Bf4 $19 {[%emt 0:01:16]} Qe7 {[%emt 0:02:26]} 16. h4 {[%emt 0:02:20]} Bd6 {[%emt 0:02:50]} 17. Bg5 {[%emt 0:01:03]} f6 {[%emt 0:10:52]} 18. Be3 {[%emt 0:00:56]} g6 {[%emt 0:08:19]} 19. Rag1 {[%emt 0:03:41]} O-O-O {[%emt 0:06:00]} 20. f4 {[%emt 0:02:30]} Nd5 {[%emt 0:07:15]} 21. Qxc4 {[%emt 0:02:30]} Bxf4 {[%emt 0:04:22]} 22. Bxf4 {[%emt 0:02:12]} Nxf4+ {[%emt 0:00:11]} 23. Kf3 {[%emt 0:00:08]} Nd5 {[%emt 0:01:21]} 24. Rc1 {[%emt 0:00:43]} Qd6 {[%emt 0:00:31]} 0-1

[Event "ONJK-A 2019"]
[Site "Borne"]
[Date "2019.08.09"]
[Round "7.9"]
[White "Klaren, Duncan"]
[Black "Hofstra, Tijmen"]
[Result "1-0"]
[ECO "B03"]
[WhiteElo "1896"]
[BlackElo "1732"]
[Annotator "NA RC"]
[PlyCount "61"]
[EventDate "2019.08.05"]
[EventType "swiss"]
[EventCountry "NED"]
[SourceTitle "playchess.com"]
[Source "ChessBase"]
[SourceQuality "1"]
[TimeControl "5400+30"]

{[%evp 8,57,57,37,28,35,44,26,27,32767,32767,32767,32767,32767,32767,29,32767,61,84,32767,50,32767,32767,32767,32767,88,191,151,149,146,210,212,328,340,327,177,176,110,324,368,382,385,424,430,456,448,463,483,1324,1406,1452,1635]} 1. e4 {[%emt 0:00:00]} Nf6 {[%emt 0:00:00]} 2. e5 {[%emt 0:00:00]} Nd5 {[%emt 0:00:00]} 3. d4 {[%emt 0:00:00]} d6 {[%emt 0:00:00]} 4. c4 {[%emt 0:00:00]} Nb6 {[%emt 0:00:00]} 5. exd6 {[%emt 0:00:00]} exd6 {[%emt 0:00:20]} 6. Nc3 {[%emt 0:00:01]} Nc6 {[%emt 0:00:14]} 7. Be3 {[%emt 0:00:50]} Be7 {[%emt 0:00:14]} 8. Bd3 {[%emt 0:02:49]} Nd7 {[%emt 0:00:26] B03: Alekhine's Defence: Four Pawns Attack} (8... O-O 9. b3 Bf6 10. Nge2 Bg4 11. O-O Nxd4 12. Bxd4 Bxd4 13. Bxh7+ Kxh7 14. Qxd4 Bxe2 15. Nxe2 Re8 16. Ng3 Kg8 {1-0 (29) Libiszewski,F (2530)-Sadorra,J (2539) chess.com INT 2018}) 9. Nge2 $146 {[%emt 0:01:26]} ({Predecessor:} 9. Nf3 Nf6 10. a3 a5 11. O-O O-O 12. h3 Bd7 13. Nd5 Re8 14. Rc1 Qc8 15. Qc2 h6 16. Nh2 {½-½ (24) Fraczek,L (1557)-Szustakowski,A (1485) Milanowek 2012}) 9... Nf6 {[%emt 0:00:06]} 10. O-O {[%emt 0:01:38]} O-O {[%emt 0:00:15]} 11. Ng3 {[%emt 0:02:19]} Re8 {[%emt 0:01:46]} 12. Rc1 {[%emt 0:15:36]} Bf8 {[%emt 0:01:01]} 13. Qd2 {[%emt 0:03:21]} Ng4 {[%emt 0:00:16]} 14. h3 {[%emt 0:02:01]} Nxe3 {[%emt 0:00:06]} 15. fxe3 {[%emt 0:00:05]} Qg5 {[%emt 0:00:17]} 16. Nge4 {[%emt 0:01:16]} Qh6 {[%emt 0:00:14]} (16... Qd8 $16) 17. Qf2 {[%emt 0:01:01]} f5 {[%emt 0:00:22]} 18. Nd5 {[%emt 0:01:24]} Rb8 {[%emt 0:00:44]} 19. Ng3 {[%emt 0:00:51]} ({Much less strong is} 19. Nxc7 $6 Nb4 $16) 19... Ne7 {[%emt 0:00:46]} (19... Be7 $142 20. Bxf5 (20. Nxf5 Bxf5 21. Qxf5 Kh8 $16) 20... g6) 20. Nxc7 {[%emt 0:01:44]} Rd8 {[%emt 0:00:15]} 21. Rce1 {[%emt 0:01:28]} ({Don't do} 21. Bxf5 Kh8) (21. Nxf5 $142 Nxf5 22. Bxf5) 21... g6 {[%emt 0:00:18]} 22. e4 {[%emt 0:00:49]} ({Better is} 22. Ne2 $18) 22... Bg7 $2 {[%emt 0:01:03]} (22... f4 $16) 23. exf5 {[%emt 0:02:34]} Nxf5 {[%emt 0:00:05]} 24. Bxf5 {[%emt 0:00:41]} ({Resist} 24. Nxf5 gxf5 25. Ne8 (25. Bxf5 Bxf5 26. Qxf5 Bxd4+ 27. Kh2 Be5+ 28. Rxe5 dxe5 $16) 25... Bd7 $18) 24... Bxf5 {[%emt 0:00:04]} 25. Nxf5 {[%emt 0:00:07]} gxf5 {[%emt 0:00:04]} 26. Ne6 {[%emt 0:00:27]} Re8 {[%emt 0:00:19]} 27. Qxf5 {[%emt 0:00:25]} Rf8 {[%emt 0:00:39]} (27... Kh8 $142 28. Qd5 Rg8 29. Qxd6 Qg6) 28. Nxf8 {[%emt 0:00:52]} Rxf8 {[%emt 0:00:07] [#]} 29. Re8 $18 {[%emt 0:01:39]} Qg6 {[%emt 0:04:34]} 30. Rxf8+ {[%emt 0:00:14]} Bxf8 {[%emt 0:00:05]} 31. Qxf8# {[%emt 0:00:03]} 1-0